bitfinex/quotes_SOLUSD_20250529
["timestamp","ask_amount","ask_price","bid_price","bid_amount"]
[1748478426633,59.61157459,171.83,171.73,32.4819]
[1748478429828,0.14216157,171.82,171.73,32.4819]
[1748478431623,20.37134043,171.81,171.73,32.4819]
[1748478433420,20.37134043,171.81,171.73,38.30476131]
[1748478433935,14.55095745,171.81,171.73,32.4819]
[1748478436220,14.55095745,171.81,171.73,38.30492913]
[1748478438643,5.82004423,171.82,171.73,38.30492913]
[1748478439139,5.82004423,171.82,171.76,26.0]
[1748478439338,5.81868963,171.86,171.77,1.5402]
[1748478440646,14.54672407,171.86,171.78,5.82139946]
[1748478441236,14.54672407,171.86,171.77,1.5402]
[1748478442234,0.14216157,171.85,171.77,27.5402]
[1748478442463,18.933972,171.85,171.73,156.4448]
[1748478442662,0.28432314,171.83,171.73,8.0448]
[1748478442957,0.28432314,171.83,171.73,34.0448]
[1748478443133,0.14216157,171.83,171.73,39.86784481]
[1748478443859,0.14216157,171.83,171.73,13.86784481]
[1748478444066,0.14216157,171.83,171.73,39.86784481]
[1748478444365,5.82004423,171.82,171.73,39.86784481]
[1748478445840,0.14216157,171.81,171.73,34.0448]
[1748478447740,5.82072176,171.8,171.73,34.0448]
[1748478448240,5.82072176,171.8,171.73,39.86785944]
[1748478449648,14.55011058,171.82,171.73,39.86785944]
[1748478452070,5.81970552,171.83,171.76,26.0]
[1748478453963,20.36716863,171.85,171.76,26.0]
[1748478454260,20.36716863,171.85,171.76,31.82204728]
[1748478455554,20.36716863,171.85,171.76,26.0]
[1748478461654,0.14216157,171.84,171.76,26.0]
[1748478461887,0.28432314,171.84,171.73,193.6448]
[1748478462247,0.28432314,171.84,171.73,199.46787725]
[1748478462975,20.36896932,171.83,171.73,51.06787725]
[1748478463180,20.36896932,171.83,171.76,26.0]
[1748478464271,14.5492638,171.83,171.76,26.0]
[1748478464655,5.81902822,171.85,171.76,26.0]
[1748478465072,20.36659877,171.85,171.76,26.0]
[1748478465666,20.36659877,171.85,171.76,31.82206592]
[1748478468981,26.0,171.82,171.75,5.82233823]
[1748478469197,26.0,171.82,171.74,18.64964886]
[1748478470004,26.0,171.82,171.74,24.47230277]
[1748478470368,5.82038298,171.81,171.74,24.47230277]
[1748478473985,31.8201481,171.82,171.74,24.47230277]
[1748478475966,31.8201481,171.82,171.74,172.87230277]
[1748478479476,5.81936685,171.84,171.74,198.87230277]
[1748478480767,20.36659877,171.85,171.74,198.87230277]
[1748478482910,5.81902822,171.85,171.79,6.4825]
[1748478484198,20.36333394,171.88,171.79,12.30342349]
[1748478484696,5.81801256,171.88,171.8,26.0]
[1748478485779,5.81801256,171.88,171.8,31.82048973]
[1748478486875,59.10283638,171.9,171.8,42.82048973]
[1748478487493,59.10283638,171.9,171.8,37.0]
[1748478487669,59.10283638,171.9,171.8,42.82070798]
[1748478490896,5.81733566,171.9,171.8,42.82070798]
[1748478491072,5.81733566,171.9,171.81,18.64964886]
[1748478491998,5.81699726,171.91,171.82,5.82004423]
[1748478492201,5.81699726,171.91,171.84,1.5978]
[1748478492872,5.81699726,171.91,171.84,27.5978]
[1748478493584,20.35949042,171.91,171.84,1.5978]
[1748478494389,14.54249316,171.91,171.84,1.5978]
[1748478494575,14.54249316,171.91,171.84,27.5978]
[1748478495901,0.28432314,171.9,171.81,26.0]
[1748478496201,1.87902314,171.9,171.8,12.6635]
[1748478496410,1.87902314,171.9,171.8,38.6635]
[1748478496617,0.28432314,171.88,171.8,38.6635]
[1748478496912,38.86432314,171.88,171.8,38.6635]
[1748478498683,5.81835107,171.87,171.8,38.6635]
[1748478499389,5.81835107,171.87,171.8,44.48418937]
[1748478500804,5.81767409,171.89,171.8,44.48418937]
[1748478501324,5.81767409,171.89,171.83,26.0]
[1748478502526,5.81699726,171.91,171.83,26.0]
[1748478503208,5.81699726,171.91,171.83,31.81967677]
[1748478503811,5.81699726,171.91,171.83,26.0]
[1748478504516,5.81632059,171.93,171.83,31.81951175]
[1748478506193,20.3517599,171.98,171.88,26.0]
[1748478506392,0.28432314,171.97,171.88,26.0]
[1748478506816,59.0317599,171.98,171.88,26.0]
[1748478507223,20.3517599,171.98,171.89,5.81767409]
[1748478507404,20.3517599,171.98,171.89,1.6171]
[1748478508905,58.9517599,171.98,171.89,1.6171]
[1748478510096,58.9517599,171.98,171.89,4.55429996]
[1748478510297,58.9517599,171.98,171.89,1.6171]
[1748478512028,38.58,171.97,171.89,1.6171]
[1748478512720,5.81530588,171.96,171.89,1.6171]
[1748478513308,5.81530588,171.96,171.89,7.4346865]
[1748478514726,5.81530588,171.96,171.89,10.37670728]
[1748478516013,5.81530588,171.96,171.89,4.55912078]
[1748478516732,5.81530588,171.96,171.89,10.37673228]
[1748478517109,5.8146296,171.98,171.9,6.5282]
[1748478517530,5.8146296,171.98,171.9,12.34522364]
[1748478518199,5.8146296,171.98,171.93,26.0]
[1748478519209,5.81395348,172.0,171.93,26.0]
[1748478519425,44.65827662,172.0,171.93,26.0]
[1748478519855,6.09827662,172.0,171.93,26.0]
[1748478520014,5.81395348,172.0,171.93,26.0]
[1748478521435,20.34818775,172.01,171.93,26.0]
[1748478526347,0.28432314,172.0,171.93,26.0]
[1748478526541,0.28432314,172.0,171.9,32.5282]
[1748478527142,20.34818775,172.01,171.9,38.34534874]
[1748478527348,5.81361548,172.01,171.93,26.0]
[1748478527727,5.81361548,172.01,171.92,26.0]
[1748478528347,0.28432314,172.0,171.92,26.0]
[1748478528728,20.34765419,172.01,171.95,26.0]
[1748478529055,5.81361548,172.01,171.95,26.0]
[1748478529225,5.8129396,172.03,171.95,1.5843]
[1748478529424,14.529133,172.07,171.97,32.4771]
[1748478529637,18.64964886,172.09,172.0,26.0]
[1748478529949,5.81125058,172.08,172.0,26.0]
[1748478530330,24.46056175,172.09,172.0,26.0]
[1748478530740,0.28432314,172.08,172.0,26.0]
[1748478530947,38.98784398,172.09,172.0,26.0]
[1748478531253,20.33819512,172.09,172.0,26.0]
[1748478531424,59.51819512,172.09,172.0,26.0]
[1748478531750,0.28432314,172.08,172.0,26.0]
[1748478532253,20.33819512,172.09,172.01,1.5909]
[1748478532557,20.33819512,172.09,172.01,27.5909]
[1748478533866,5.81091289,172.09,172.02,26.0]
[1748478534164,5.81091289,172.09,172.01,1.5909]
[1748478534376,5.81091289,172.09,172.01,27.5909]
[1748478535156,5.81091289,172.09,172.02,26.0]
[1748478535955,20.33819512,172.09,172.01,1.5909]
[1748478536581,20.33819512,172.09,172.01,27.5909]
[1748478538653,20.33819512,172.09,172.01,7.40445813]
[1748478538654,5.81091289,172.09,172.01,7.40445813]
[1748478538852,5.81091289,172.09,172.01,1.5909]
[1748478540481,20.33819512,172.09,172.01,1.5909]
[1748478542159,5.81091289,172.09,172.01,7.40446586]
[1748478543060,5.81091289,172.09,172.01,7.40446483]
[1748478545887,6.09456077,172.11,172.04,26.0]
[1748478546182,20.62015486,172.11,172.04,26.0]
[1748478547173,0.28432314,172.09,172.0,148.4]
[1748478547374,0.28432314,172.09,171.97,8.0986]
[1748478547560,0.28432314,172.09,172.0,26.0]
[1748478547881,5.81125058,172.08,172.0,26.0]
[1748478548087,20.33937703,172.08,172.0,26.0]
[1748478548467,5.81125058,172.08,172.03,26.0]
[1748478550170,5.81125058,172.08,172.02,5.81299405]
[1748478550893,5.81125058,172.08,172.01,26.0]
[1748478550894,5.81125058,172.08,172.01,31.81352871]
[1748478551804,20.33636229,172.11,172.02,1.521]
[1748478553111,20.33636229,172.11,172.05,26.0]
[1748478554683,59.67636229,172.11,172.03,26.0]
[1748478554885,18.933972,172.1,172.03,26.0]
[1748478556194,0.28432314,172.1,172.03,26.0]
[1748478556501,20.33636229,172.11,172.03,26.0]
[1748478556810,5.81023763,172.11,172.03,26.0]
[1748478557606,5.81023763,172.11,172.03,31.81291106]
[1748478558590,0.28432314,172.1,172.03,31.81291106]
[1748478559000,5.81091289,172.09,172.03,31.81291106]
[1748478559522,5.81091289,172.09,172.03,26.0]
[1748478559814,5.81091289,172.09,172.05,26.0]
[1748478560307,5.81091289,172.09,172.03,31.81284371]
[1748478560683,5.81067309,172.1,172.03,31.81284371]
[1748478560897,5.81033002,172.11,172.03,39.75314371]
[1748478561202,0.28432314,172.12,172.03,39.75314371]
[1748478562925,11.44,172.14,172.03,39.75314371]
[1748478563124,5.80980184,172.13,172.03,39.75314371]
[1748478563915,5.80980184,172.13,172.03,201.06379271]
[1748478564087,5.80980184,172.13,172.04,1.5911]
[1748478564286,54.04102808,172.17,172.05,18.64964886]
[1748478564587,5.80787547,172.18,172.09,26.0]
[1748478564806,5.80787547,172.18,172.11,26.0]
[1748478565002,58.20964886,172.22,172.11,26.0]
[1748478565383,0.14216157,172.21,172.11,26.0]
[1748478565791,39.7,172.2,172.11,26.0]
[1748478566313,39.68,172.2,172.11,2.95004386]
[1748478566488,0.14216157,172.19,172.11,26.0]
[1748478566887,5.80787547,172.18,172.11,26.0]
[1748478567086,0.28432314,172.17,172.11,26.0]
[1748478569095,5.80855018,172.16,172.11,26.0]
[1748478569698,0.28432314,172.15,172.11,26.0]
[1748478570629,20.32992564,172.16,172.11,26.0]
[1748478571002,5.80855018,172.16,172.11,26.0]
[1748478572211,5.80787547,172.18,172.11,26.0]
[1748478573112,20.32690621,172.19,172.11,26.0]
[1748478574008,20.32690621,172.19,172.11,31.81018577]
[1748478574202,5.80753818,172.19,172.13,1.597]
[1748478574399,5.80753818,172.19,172.15,26.0]
[1748478577003,5.30753818,172.19,172.15,26.0]
[1748478579936,0.14216157,172.18,172.15,26.0]
[1748478580116,0.14216157,172.18,172.13,1.597]
[1748478580317,0.14216157,172.18,172.13,27.597]
[1748478582673,0.14216157,172.2,172.13,27.597]
[1748478582817,5.80753818,172.19,172.13,27.597]
[1748478584342,5.80753818,172.19,172.15,26.0]
[1748478587346,31.78174886,172.24,172.15,26.0]
[1748478587347,14.51404242,172.25,172.18,26.0]
[1748478587722,0.28432314,172.24,172.18,26.0]
[1748478588225,6.09017543,172.24,172.18,26.0]
[1748478588420,5.94801386,172.24,172.18,26.0]
[1748478588836,0.14216157,172.23,172.18,26.0]
[1748478590349,0.14216157,172.21,172.18,26.0]
[1748478594648,5.94911871,172.21,172.18,26.0]
[1748478595144,0.14216157,172.2,172.15,11.58]
[1748478595325,0.14216157,172.2,172.13,1.597]
[1748478595525,0.14216157,172.2,172.15,26.0]
[1748478596837,0.14216157,172.18,172.13,1.597]
[1748478597932,0.28432314,172.17,172.13,1.597]
[1748478599057,0.28432314,172.17,172.13,27.597]
[1748478600760,0.28432314,172.19,172.13,33.40646813]
[1748478602644,0.28432314,172.2,172.13,33.40646813]
[1748478602830,5.80595213,172.24,172.17,26.0]
[1748478603035,14.51262842,172.27,172.17,26.0]
[1748478603266,5.80450429,172.28,172.21,26.0]
[1748478604062,5.80383052,172.3,172.21,26.0]
[1748478604761,5.80383052,172.3,172.22,26.0]
[1748478604963,20.31340684,172.3,172.22,26.0]
[1748478605147,18.933972,172.29,172.22,26.0]
[1748478605341,18.933972,172.29,172.19,26.0]
[1748478606343,0.28432314,172.27,172.19,26.0]
[1748478608365,0.28432314,172.25,172.19,26.0]
[1748478609933,0.28432314,172.25,172.2,26.0]
[1748478610357,0.14216157,172.23,172.21,26.0]
[1748478610563,5.80552339,172.25,172.21,26.0]
[1748478610751,14.51086451,172.29,172.21,32.4207]
[1748478610951,0.28432314,172.27,172.21,32.4207]
[1748478611267,5.80450429,172.28,172.21,32.4207]
[1748478612470,0.14216157,172.28,172.21,32.4207]
[1748478612763,5.8034937,172.31,172.21,38.22744546]
[1748478613348,5.8034937,172.31,172.22,1.6658]
[1748478613855,20.31222795,172.31,172.22,1.6658]
[1748478614163,0.28432314,172.3,172.22,1.6658]
[1748478614545,0.28432314,172.28,172.22,1.6658]
[1748478616548,5.80457144,172.28,172.22,1.6658]
[1748478617575,0.28432314,172.27,172.22,1.6658]
[1748478618577,6.0892099,172.27,172.22,1.6658]
[1748478621378,5.80450841,172.28,172.25,26.0]
[1748478622370,5.80420995,172.29,172.25,26.0]
[1748478626472,5.80420995,172.29,172.26,26.0]
[1748478626783,5.80390769,172.3,172.25,26.0]
[1748478627281,0.28432314,172.29,172.25,26.0]
[1748478627465,0.28432314,172.27,172.25,26.0]
[1748478627775,0.28432314,172.27,172.23,26.0]
[1748478627973,0.28432314,172.27,172.24,26.0]
[1748478628570,5.80517821,172.26,172.24,26.0]
[1748478629570,0.28432314,172.25,172.22,1.6658]
[1748478630057,0.28432314,172.25,172.21,32.4207]
[1748478630253,0.28432314,172.25,172.21,26.0]
[1748478630683,5.80585229,172.24,172.21,26.0]
[1748478634408,0.28432314,172.23,172.18,1.5181]
[1748478634573,0.28432314,172.23,172.14,83.56]
[1748478634574,0.28432314,172.23,172.14,231.96]
[1748478634893,0.28432314,172.21,172.15,26.0]
[1748478635787,0.28432314,172.21,172.14,83.56]
[1748478635961,0.28432314,172.21,172.13,11.38]
[1748478636765,18.933972,172.21,172.13,11.38]
[1748478636991,0.28432314,172.19,172.13,11.38]
[1748478638067,0.28432314,172.19,172.09,6.5948]
[1748478638068,18.933972,172.19,172.09,6.5948]
[1748478638467,18.933972,172.19,172.08,11.38]
[1748478638996,18.933972,172.19,172.08,37.38]
[1748478639186,18.933972,172.17,172.08,37.38]
[1748478639692,18.933972,172.17,172.08,11.38]
[1748478640203,18.933972,172.15,172.06,26.0]
[1748478641661,0.28432314,172.13,172.06,26.0]
[1748478642380,0.28432314,172.11,172.03,13.0111]
[1748478642691,0.28432314,172.11,172.01,43.19353846]
[1748478643484,20.29634886,172.12,172.01,43.19353846]
[1748478643485,0.28432314,172.09,172.01,43.19353846]
[1748478644294,0.28432314,172.09,172.04,26.0]
[1748478645284,6.09533443,172.09,172.04,26.0]
[1748478646177,5.81050006,172.11,172.04,5.81246141]
[1748478646515,40.52275377,172.15,172.05,1.5639]
[1748478646516,14.52275377,172.15,172.05,1.5639]
[1748478646721,5.80888759,172.15,172.05,1.5639]
[1748478647091,16.69782081,172.11,172.05,1.5639]
[1748478647298,0.28432314,172.09,172.05,18.26172081]
[1748478647594,0.28432314,172.09,172.06,16.69782081]
[1748478648809,16.98214395,172.09,172.04,16.69782081]
[1748478649312,0.28432314,172.05,172.04,16.69782081]
[1748478649697,0.28432314,172.05,172.01,38.8849]
[1748478649896,0.28432314,172.05,172.01,16.69782081]
[1748478651288,5.81260172,172.04,171.97,1.607]
[1748478651484,16.98214395,172.03,171.99,16.69782081]
[1748478651888,0.28432314,172.03,172.0,16.69782081]
[1748478652123,0.28432314,172.03,172.01,16.69782081]
[1748478652310,0.28432314,172.03,171.97,7.42187938]
[1748478652311,0.28432314,172.03,172.02,16.69782081]
[1748478652518,57.22729139,172.07,172.02,16.69782081]
[1748478652519,0.28432314,172.05,172.02,16.69782081]
[1748478652735,0.14216157,172.05,172.04,16.69782081]
[1748478653204,0.28432314,172.05,172.04,16.69782081]
[1748478653999,6.09658701,172.05,172.04,16.69782081]
[1748478654723,0.28432314,172.04,172.03,16.69782081]
[1748478654898,0.28432314,172.04,171.97,1.607]
[1748478654899,0.28432314,172.04,171.98,5.81458718]
[1748478655094,0.28432314,172.04,171.97,7.42188525]
[1748478655430,5.8129396,172.03,172.02,16.69782081]
[1748478655601,0.28432314,172.02,171.97,7.42190511]
[1748478655797,0.28432314,172.02,172.01,16.69782081]
[1748478656108,0.28432314,172.02,172.0,16.69782081]
[1748478656504,0.28432314,172.02,171.96,6.0245]
[1748478656705,0.28432314,172.02,171.98,16.69782081]
[1748478656920,0.28432314,172.02,171.99,16.69782081]
[1748478657227,0.28432314,172.02,172.0,16.69782081]
[1748478657598,5.81361548,172.01,172.0,16.69782081]
[1748478657791,5.81361548,172.01,171.96,6.0245]
[1748478657792,0.28432314,172.0,171.96,6.0245]
[1748478658203,0.28432314,172.0,171.99,16.69782081]
[1748478658725,6.09827662,172.0,171.95,11.16]
[1748478658892,6.09827662,172.0,171.98,16.69782081]
[1748478659233,6.09827662,172.0,171.97,16.69782081]
[1748478660013,6.09827662,172.0,171.98,16.69782081]
[1748478660419,6.09827662,172.0,171.95,11.16]
[1748478660617,6.09827662,172.0,171.98,16.69782081]
[1748478660821,0.28432314,172.0,171.98,16.69782081]
[1748478661026,0.28432314,172.0,171.99,16.69782081]
[1748478661398,0.28432314,172.0,171.98,16.69782081]
[1748478661598,0.28432314,172.0,171.97,16.69782081]
[1748478661804,0.28432314,171.98,171.97,16.69782081]
[1748478665044,5.81388173,172.01,171.97,16.69782081]
[1748478665211,5.81388173,172.01,171.95,11.16]
[1748478665212,0.28432314,172.0,171.95,11.16]
[1748478665554,5.81226387,172.05,171.99,16.69782081]
[1748478665839,5.8115883,172.07,172.03,16.69782081]
[1748478666001,5.8115883,172.07,172.04,16.69782081]
[1748478666548,22.50940911,172.07,172.0,1.5086]
[1748478666846,0.14216157,172.06,172.02,16.69782081]
[1748478667157,0.28432314,172.06,172.03,16.69782081]
[1748478667440,0.28432314,172.06,172.04,16.69782081]
[1748478668008,6.09625999,172.06,172.0,33.32253711]
[1748478668211,6.09625999,172.06,172.05,16.69782081]
[1748478668212,5.954109,172.06,172.05,16.69782081]
[1748478668412,6.09627057,172.06,172.05,16.69782081]
[1748478669137,0.14216157,172.05,172.04,16.69782081]
[1748478670338,0.14216157,172.05,172.02,26.0]
[1748478670528,0.14216157,172.05,172.04,16.69782081]
[1748478670716,6.09658701,172.05,172.04,16.69782081]
[1748478670916,0.28432314,172.05,172.02,26.0]
[1748478671117,0.28432314,172.05,172.04,16.69782081]
[1748478672212,6.09658701,172.05,172.04,16.69782081]
[1748478672525,6.09658701,172.05,172.03,16.69782081]
[1748478672934,6.09658701,172.05,172.0,1.5086]
[1748478673250,6.09658701,172.05,172.03,16.69782081]
[1748478673446,38.68,172.07,172.04,16.69782081]
[1748478673748,5.81057524,172.1,172.06,16.69782081]
[1748478674039,44.48956253,172.13,172.09,16.69782081]
[1748478674216,36.91896967,172.16,172.05,26.0]
[1748478674217,5.80855018,172.16,172.12,16.69782081]
[1748478674416,44.48855018,172.16,172.14,16.69782081]
[1748478674622,0.28432314,172.15,172.14,16.69782081]
[1748478675540,5.80855018,172.16,172.13,16.69782081]
[1748478675730,0.28432314,172.15,172.13,16.69782081]
[1748478676237,0.28432314,172.15,172.08,42.69782081]
[1748478676238,0.28432314,172.15,172.08,26.0]
[1748478676440,0.14216157,172.15,172.08,26.0]
[1748478676645,20.33228766,172.14,172.11,16.69782081]
[1748478676844,0.14216157,172.13,172.11,16.69782081]
[1748478677733,6.0942232,172.12,172.11,16.69782081]
[1748478678233,0.28432314,172.11,172.1,16.69782081]
[1748478678427,0.28432314,172.11,172.09,16.69782081]
[1748478679737,5.81057524,172.1,172.09,16.69782081]
[1748478680050,5.81057524,172.1,172.08,26.0]
[1748478680278,5.81057524,172.1,172.08,42.69782081]
[1748478680543,0.28432314,172.09,172.06,16.69782081]
[1748478681752,0.28432314,172.07,172.02,1.5672]
[1748478682044,0.14216157,172.04,171.98,12.7967]
[1748478682252,0.28432314,172.02,171.98,12.7967]
[1748478682550,16.98214395,172.02,171.94,1.6367]
[1748478682844,55.64214395,172.02,171.97,16.69782081]
[1748478683230,55.64214395,172.02,171.96,26.0]
[1748478683231,0.28432314,172.0,171.96,42.69782081]
[1748478683424,0.14216157,171.99,171.95,16.69782081]
[1748478683624,0.14216157,171.99,171.94,1.6367]
[1748478683826,5.8146296,171.98,171.96,42.69782081]
[1748478686958,5.8146296,171.98,171.97,16.69782081]
[1748478687966,5.81429152,171.99,171.96,42.69782081]
[1748478688258,0.14216157,171.98,171.96,42.69782081]
[1748478688451,0.14216157,171.98,171.96,26.0]
[1748478688756,0.14216157,171.98,171.96,42.69782081]
[1748478689270,0.28432314,171.98,171.96,26.0]
[1748478689972,5.95712929,171.97,171.96,26.0]
[1748478690537,5.95712929,171.97,171.96,42.69782081]
[1748478690745,0.14216157,171.97,171.96,42.69782081]
[1748478691863,0.14216157,171.97,171.96,26.0]
[1748478692383,5.95712929,171.97,171.96,42.69782081]
[1748478692660,5.95712929,171.97,171.94,1.6367]
[1748478692661,0.14216157,171.96,171.94,18.33452081]
[1748478692866,0.28432314,171.96,171.93,27.85782081]
[1748478693447,0.28432314,171.96,171.93,16.69782081]
[1748478694163,6.09995788,171.96,171.93,16.69782081]
[1748478694752,6.09995788,171.96,171.92,42.69782081]
[1748478695146,22.79777869,171.96,171.92,42.69782081]
[1748478696276,0.28432314,171.94,171.9,16.69782081]
[1748478696594,0.28432314,171.94,171.89,7.6297]
[1748478696595,38.96432314,171.94,171.92,16.69782081]
[1748478698145,5.81493851,171.98,171.92,26.0]
[1748478698349,5.81493851,171.98,171.96,16.69782081]
[1748478698566,0.14216157,171.97,171.96,16.69782081]
[1748478699072,5.81493851,171.98,171.96,16.69782081]
[1748478699370,0.14216157,171.97,171.96,16.69782081]
[1748478699670,0.28432314,171.97,171.94,16.69782081]
[1748478699877,16.98214395,171.97,171.93,16.69782081]
[1748478700058,20.35357059,171.96,171.92,16.69782081]
[1748478700579,0.28432314,171.94,171.91,16.69782081]
[1748478700874,0.28432314,171.94,171.89,33.6297]
[1748478700875,0.28432314,171.94,171.92,16.69782081]
[1748478701091,0.28432314,171.94,171.89,7.6297]
[1748478701249,0.28432314,171.94,171.91,16.69782081]
[1748478701564,16.98214395,171.94,171.89,16.69782081]
[1748478701745,16.98214395,171.94,171.88,11.06]
[1748478701945,16.69782081,171.93,171.89,16.69782081]
[1748478702172,0.28432314,171.91,171.89,16.69782081]
[1748478702971,0.28432314,171.91,171.9,16.69782081]
[1748478703185,0.28432314,171.91,171.85,33.7075]
[1748478703345,0.28432314,171.91,171.89,16.69782081]
[1748478703744,0.28432314,171.91,171.9,16.69782081]
[1748478704779,6.1013204,171.91,171.9,16.69782081]
[1748478705857,5.81632059,171.93,171.9,16.69782081]
[1748478706169,0.14216157,171.95,171.92,16.69782081]
[1748478706346,5.81530588,171.96,171.94,16.69782081]
[1748478706546,5.8146296,171.98,171.91,1.6077]
[1748478706750,5.8146296,171.98,171.96,16.69782081]
[1748478706978,5.8146296,171.98,171.97,16.69782081]
[1748478707179,6.09895274,171.98,171.97,16.69782081]
[1748478707674,6.09895274,171.98,171.96,16.69782081]
[1748478707882,5.8146296,171.98,171.96,16.69782081]
[1748478708253,0.28432314,171.97,171.94,16.69782081]
[1748478708676,6.09962902,171.96,171.95,16.69782081]
[1748478709558,69.91202086,172.01,171.95,16.69782081]
[1748478709753,0.28432314,172.0,171.96,16.69782081]
[1748478710182,0.14216157,172.0,171.97,16.69782081]
[1748478710492,5.81395348,172.0,171.99,16.69782081]
[1748478710657,20.34435202,172.04,171.99,16.69782081]
[1748478710860,20.34435202,172.04,172.01,16.69782081]
[1748478711369,5.81260172,172.04,172.03,16.69782081]
[1748478711569,14.52925575,172.07,172.03,16.69782081]
[1748478711570,5.81192607,172.06,172.03,16.69782081]
[1748478711874,5.81192607,172.06,171.99,16.69782081]
[1748478712079,5.81192607,172.06,171.98,1.5173]
[1748478712292,5.81192607,172.06,172.05,16.69782081]
[1748478712498,5.81091289,172.09,172.05,16.69782081]
[1748478712687,5.81091289,172.09,172.07,16.69782081]
[1748478712854,5.81091289,172.09,172.08,16.69782081]
[1748478713554,5.80990006,172.12,172.08,16.69782081]
[1748478713864,5.80990006,172.12,172.09,16.69782081]
[1748478714059,5.80990006,172.12,172.11,24.73936695]
[1748478714687,5.80888759,172.15,172.11,24.73936695]
[1748478714887,5.80888759,172.15,172.13,24.73936695]
[1748478715063,5.80888759,172.15,172.12,24.73936695]
[1748478715259,5.80888759,172.15,172.13,24.73936695]
[1748478715683,5.80888759,172.15,172.14,24.73936695]
[1748478716997,5.95003704,172.18,172.14,24.73936695]
[1748478717283,5.95003704,172.18,172.15,24.73936695]
[1748478717598,5.80787547,172.18,172.17,24.73936695]
[1748478718763,5.94902528,172.21,172.17,24.73936695]
[1748478718960,5.94902528,172.21,172.14,8.169]
[1748478718961,5.94902528,172.21,172.18,24.73936695]
[1748478719262,5.94902528,172.21,172.17,24.73936695]
[1748478719474,5.94902528,172.21,172.18,24.73936695]
[1748478719788,5.94902528,172.21,172.17,24.73936695]
[1748478719967,20.32402299,172.21,172.16,24.73936695]
[1748478720182,0.28432314,172.2,172.16,24.73936695]
[1748478720366,0.28432314,172.2,172.17,24.73936695]
[1748478721073,20.32638364,172.19,172.16,24.73936695]
[1748478721392,0.28432314,172.18,172.14,50.73936695]
[1748478721689,45.06575059,172.19,172.13,24.73936695]
[1748478721690,0.28432314,172.16,172.13,24.73936695]
[1748478723291,5.80888759,172.15,172.13,24.73936695]
[1748478723458,0.28432314,172.14,172.12,24.73936695]
[1748478723653,0.28432314,172.14,172.11,24.73936695]
[1748478724067,0.28432314,172.14,172.1,17.6403]
[1748478724268,0.28432314,172.14,172.1,35.79936695]
[1748478724789,0.28432314,172.14,172.1,11.06]
[1748478724961,0.28432314,172.12,172.09,1.6106]
[1748478725161,5.81023763,172.11,172.08,24.73936695]
[1748478725913,5.80888759,172.15,172.1,24.73936695]
[1748478726189,5.80888759,172.15,172.12,24.73936695]
[1748478726398,5.80888759,172.15,172.13,24.73936695]
[1748478727171,5.80888759,172.15,172.09,26.0]
[1748478727172,5.80855018,172.16,172.1,24.73936695]
[1748478727491,5.80855018,172.16,172.15,24.73936695]
[1748478728155,5.80855018,172.16,172.13,24.73936695]
[1748478728389,0.28432314,172.15,172.12,24.73936695]
[1748478728983,0.28432314,172.15,172.1,26.0]
[1748478729185,5.80922504,172.14,172.1,26.0]
[1748478729395,0.28432314,172.13,172.09,24.73936695]
[1748478729574,25.02369009,172.13,172.08,50.73936695]
[1748478729768,0.28432314,172.11,172.07,24.73936695]
[1748478730912,0.28432314,172.11,172.06,26.0]
[1748478731089,5.81125058,172.08,172.05,11.04]
[1748478731271,0.14216157,172.07,172.03,24.73936695]
[1748478731472,0.28432314,172.07,172.03,24.73936695]
[1748478731694,0.14216157,172.07,172.05,24.73936695]
[1748478732019,5.81125058,172.08,172.06,24.73936695]
[1748478732296,5.81125058,172.08,172.07,24.73936695]
[1748478733073,5.81091289,172.09,172.07,24.73936695]
[1748478734798,5.81091289,172.09,172.08,24.73936695]
[1748478736902,5.81091289,172.09,172.07,24.73936695]
[1748478737409,5.81091289,172.09,172.06,24.73936695]
[1748478738916,0.14216157,172.08,172.02,26.0]
[1748478739199,0.28432314,172.08,172.04,24.73936695]
[1748478739406,25.02369009,172.08,172.04,24.73936695]
[1748478739693,25.02369009,172.08,172.03,50.73936695]
[1748478740468,25.02369009,172.08,172.03,24.73936695]
[1748478740899,5.8115883,172.07,172.03,24.73936695]
[1748478741102,0.14216157,172.06,172.03,24.73936695]
[1748478743177,5.81226387,172.05,172.03,24.73936695]
[1748478744304,20.34292356,172.05,172.01,26.27966695]
[1748478744606,25.02369009,172.04,171.97,1.5279]
[1748478744783,0.14216157,172.02,171.98,24.73936695]
[1748478745312,0.14216157,172.02,171.98,50.73936695]